fUST/lending_fUST_20240917
["ID","MTS","AMOUNT","RATE_DAILY","PERIOD"]
[338341956,1726523433217,-151.0,0.00019884,2]
[338341957,1726523433227,-590.1636469,0.000199,2]
[338341996,1726523440447,-772.3963531,0.000199,2]
[338341997,1726523440456,-3155.42426726,0.000199,2]
[338341998,1726523440468,-3899.97367372,0.000199,2]
[338342021,1726523443687,-500.0,0.00019078,2]
[338342022,1726523443696,-3926.60205902,0.000199,2]
[338342023,1726523443705,-3416.24851456,0.000199,2]
[338342024,1726523443714,-508.704984,0.0001995,2]
[338342025,1726523443724,-1170.61932492,0.00019973,2]
[338342026,1726523443732,-500.0,0.00019999,2]
[338342027,1726523443742,-254.71905948,0.0002,2]
[338342028,1726523443751,-1000.0,0.0002,2]
[338342029,1726523443761,-2118.6651917,0.0002,2]
[338342030,1726523443770,-26293.77335122,0.0002,2]
[338342089,1726523722269,241.143004,0.00013699,2]
[338342143,1726524262128,238.585523,0.00013699,2]
[338342154,1726524427135,-600.0,0.00018624,2]
[338342155,1726524427158,-209.25481055,0.00018624,2]
[338342156,1726524429121,-390.74518945,0.00018624,2]
[338342157,1726524429142,-123.28443827,0.00018868,2]
[338342160,1726524548877,5089.6193233,0.00013,2]
[338342193,1726524632549,-277.1066722,0.00018983,2]
[338342195,1726524632559,-197.620922,0.00019043,2]
[338342197,1726524632571,-161.6738,0.00019178,2]
[338342199,1726524632580,-197.620922,0.00019539,2]
[338342201,1726524632590,-153.0,0.000197,2]
[338342203,1726524632600,-153.0,0.000197,2]
[338342205,1726524632609,-208.6350023,0.00019782,2]
[338342207,1726524632619,-300.0,0.00019799,2]
[338342209,1726524632629,-508.67704076,0.000198,2]
[338342211,1726524632641,-717.63295924,0.000198,2]
[338342213,1726524632651,-243.9912327,0.000198,2]
[338342214,1726524632661,-208.6350023,0.000198,2]
[338342216,1726524632671,-153.0,0.000198,2]
[338342218,1726524632681,-153.0,0.000198,2]
[338342220,1726524632691,-208.6350023,0.000198,2]
[338342222,1726524632700,-171.0,0.0001986,2]
[338342224,1726524632711,-153.0,0.000199,2]
[338342226,1726524632722,-208.6350023,0.000199,2]
[338342228,1726524632732,-153.0,0.000199,2]
[338342230,1726524632742,-208.6350023,0.000199,2]
[338342232,1726524632752,-153.0,0.000199,2]
[338342234,1726524632762,-150.01,0.00019999,2]
[338342235,1726524632772,-80.66516774,0.00019999,2]
[338342296,1726524638759,-462.95500003,0.00019999,2]
[338342297,1726524638771,-1159.6,0.00019999,2]
[338342328,1726524643509,-3960.78361418,0.00019999,2]
[338342329,1726524643519,-616.61638578,0.0002,2]
[338342378,1726524981138,257.525169,0.00013699,2]
[338342457,1726525631829,255.048178,0.00013699,2]
[338342458,1726525649143,-197.620922,0.00019164,2]
[338342459,1726525649174,-161.4747104,0.00019178,2]
[338342460,1726525649195,-157.992851,0.00019178,2]
[338342461,1726525649217,-239.54642723,0.00019762,2]
[338342533,1726525837760,-2847.78595956,0.00019,2]
[338343029,1726526138693,275.35495,0.00013699,2]
[338343032,1726526408578,2043.25,0.0001401,2]
[338343034,1726526636338,271.261719,0.00013699,2]
[338343037,1726526841259,-206.5680027,0.00018796,2]
[338343038,1726526841287,-2152.21404044,0.00019,2]
[338343039,1726526841309,-161.661356,0.00019178,2]
[338343040,1726526841329,-500.0,0.00019315,2]
[338343041,1726526841352,-300.0,0.00019499,2]
[338343042,1726526841374,-2000.0,0.000195,2]
[338343043,1726526841661,-153.0,0.000195,2]
[338343044,1726526841828,-208.6350023,0.000195,2]
[338343045,1726526841851,-153.0,0.000195,2]
[338343046,1726526841873,-174.0,0.0001959,2]
[338343047,1726526841894,-2590.24085409,0.000198,5]
[338343048,1726526841915,-1103.68,0.000198,2]
[338343049,1726526841936,-153.0,0.000198,2]
[338343050,1726526841957,-208.6350023,0.000198,2]
[338343051,1726526841978,-153.0,0.000198,2]
[338343052,1726526841999,-208.6350023,0.000198,2]
[338343053,1726526842019,-153.0,0.000198,2]
[338343054,1726526842041,-153.0,0.000198,2]
[338343055,1726526842063,-208.6350023,0.000198,2]
[338343056,1726526842083,-208.6350023,0.000198,2]
[338343057,1726526842104,-153.0,0.000198,2]
[338343058,1726526842125,-234.85993684,0.000198,2]
[338343059,1726526847110,-10.54520066,0.000198,2]
[338343060,1726526847140,-295.1523403,0.000198,2]
[338343061,1726526847160,-153.0,0.000198,2]
[338343062,1726526847181,-208.6350023,0.000198,2]
[338343063,1726526847202,-128.40053907,0.000198,2]
[338343105,1726527032248,-540.89370641,0.00018696,2]
[338343106,1726527032259,-487.75805205,0.00019397,2]
[338343107,1726527032269,-487.75805205,0.00019507,2]
[338343108,1726527032280,-211.21584307,0.00019589,2]
[338343148,1726527038029,-276.54220898,0.00019589,2]
[338343150,1726527038040,-487.75805205,0.00019699,2]
[338343152,1726527038050,-487.75805205,0.00019781,2]
[338343154,1726527038060,-300.0,0.00019799,2]
[338343156,1726527038070,-24.59946093,0.000198,2]
[338343158,1726527038080,-153.0,0.000198,2]
[338343160,1726527038089,-421.0214701,0.000198,2]
[338343162,1726527038098,-116.7009311,0.000198,2]
[338343267,1726527040017,-113.5699909,0.000198,2]
[338343269,1726527040027,-153.0,0.000198,2]
[338343271,1726527040037,-153.0,0.000198,2]
[338343273,1726527040046,-153.0,0.000198,2]
[338343275,1726527040056,-153.0,0.000198,2]
[338343277,1726527040066,-208.6350023,0.000198,2]
[338343278,1726527040076,-153.0,0.000198,2]
[338343280,1726527040086,-500.0,0.000198,2]
[338343282,1726527040096,-993.31,0.000198,2]
[338343284,1726527040107,-153.0,0.00019801,2]
[338343286,1726527040116,-153.0,0.00019801,2]
[338343288,1726527040126,-153.0,0.00019801,2]
[338343290,1726527040136,-153.0,0.00019801,2]
[338343292,1726527040146,-153.0,0.00019801,2]
[338343294,1726527040156,-153.0,0.00019801,2]
[338343296,1726527040166,-153.0,0.00019801,2]
[338343298,1726527040175,-153.0,0.00019801,2]
[338343300,1726527040186,-150.0,0.00019829,2]
[338343302,1726527040195,-487.75805205,0.00019863,2]
[338343304,1726527040205,-161.36702978,0.00019899,2]
[338343306,1726527040215,-224.5870525,0.000199,2]
[338343308,1726527040225,-153.7118301,0.000199,2]
[338343310,1726527040235,-500.0,0.0001994,2]
[338343312,1726527040245,-500.0,0.0001995,2]
[338343314,1726527040255,-161.36702976,0.0001995,2]
[338343316,1726527040264,-1000.0,0.00019955,2]
[338343318,1726527040274,-500.0,0.0001996,2]
[338343321,1726527040285,-151.0,0.0001996,2]
[338343323,1726527040294,-151.0,0.0001996,2]
[338343325,1726527040304,-343.322763,0.0001996,2]
[338343327,1726527040313,-343.322763,0.0001996,2]
[338343329,1726527040323,-500.0,0.0001997,2]
[338343331,1726527040333,-500.0,0.00019973,2]
[338343332,1726527040342,-487.75805205,0.00019973,2]
[338343334,1726527040352,-475.986206,0.00019973,2]
[338343336,1726527040362,-475.986206,0.00019973,2]
[338343338,1726527040373,-623.263215,0.00019973,2]
[338343340,1726527040382,-623.263215,0.00019973,2]
[338343342,1726527040392,-500.0,0.0001998,2]
[338343344,1726527040402,-1295.12042704,0.00019988,5]
[338343346,1726527040411,-486.37148386,0.00019988,2]
[338343348,1726527040421,-500.0,0.00019988,2]
[338343351,1726527040431,-169.83040305,0.00019988,2]
[338343353,1726527040441,-177.15584514,0.00019988,2]
[338343354,1726527040452,-500.0,0.00019988,2]
[338343356,1726527040461,-500.0,0.00019988,2]
[338343358,1726527040470,-500.0,0.00019988,2]
[338343360,1726527040480,-500.0,0.00019988,2]
[338343362,1726527040490,-500.0,0.00019988,2]
[338343364,1726527040499,-500.0,0.00019988,2]
[338343366,1726527040509,-500.0,0.00019988,2]
[338343368,1726527040519,-500.0,0.00019988,2]
[338343370,1726527040533,-500.0,0.00019988,2]
[338343372,1726527040543,-500.0,0.00019988,2]
[338343374,1726527040552,-500.0,0.00019988,2]
[338343376,1726527040563,-500.0,0.00019988,2]
[338343378,1726527040573,-500.0,0.00019988,2]
[338343380,1726527040583,-378.43676856,0.00019988,2]
[338343382,1726527040592,-378.83486248,0.00019988,2]
[338343385,1726527040606,-121.16513752,0.00019988,2]
[338343387,1726527040616,-500.0,0.00019988,2]
[338343389,1726527040626,-500.0,0.00019988,2]
[338343391,1726527040635,-500.0,0.00019988,2]
[338343393,1726527040645,-500.0,0.00019988,2]
[338343395,1726527040654,-500.0,0.00019988,2]
[338343397,1726527040664,-500.0,0.00019988,2]
[338343399,1726527040674,-500.0,0.00019988,2]
[338343400,1726527040683,-500.0,0.00019988,2]
[338343402,1726527040693,-500.0,0.00019988,2]
[338343405,1726527040703,-500.0,0.00019988,2]
[338343407,1726527040712,-500.0,0.00019988,2]
[338343409,1726527040722,-500.0,0.00019988,2]
[338343411,1726527040734,-500.0,0.00019988,2]
[338343413,1726527040744,-500.0,0.00019988,2]
[338343415,1726527040753,-500.0,0.00019988,2]
[338343417,1726527040763,-500.0,0.00019988,2]
[338343419,1726527040773,-500.0,0.00019988,2]
[338343421,1726527040783,-200.0,0.00019988,2]
[338343423,1726527040793,-500.0,0.00019988,2]
[338343425,1726527040803,-384.70799,0.00019988,2]
[338343427,1726527040813,-384.70799,0.00019988,2]
[338343429,1726527040823,-384.70799,0.00019988,2]
[338343431,1726527040833,-384.70799,0.00019988,2]
[338343433,1726527040843,-384.70799,0.00019988,2]
[338343435,1726527040853,-384.70799,0.00019988,2]
[338343437,1726527040863,-384.70799,0.00019988,2]
[338343439,1726527040872,-384.70799,0.00019988,2]
[338343441,1726527040882,-384.70799,0.00019988,2]
[338343443,1726527040891,-384.70799,0.00019988,2]
[338343445,1726527040901,-58119.0991399,0.00019989,3]
[338343447,1726527040911,-52381.4869561,0.00019989,3]
[338343449,1726527040921,-151.0,0.00019989,2]
[338343451,1726527040932,-231.559033,0.00019989,2]
[338343453,1726527040942,-151.0,0.00019989,2]
[338343455,1726527040952,-151.0,0.00019989,2]
[338343457,1726527040962,-1013.720652,0.00019989,2]
[338343459,1726527040971,-1013.720652,0.00019989,2]
[338343461,1726527040981,-1013.720652,0.00019989,2]
[338343463,1726527040991,-1013.720652,0.00019989,2]
[338343465,1726527041000,-1013.720652,0.00019989,2]
[338343467,1726527041010,-1013.720652,0.00019989,2]
[338343469,1726527041020,-1013.720652,0.00019989,2]
[338343471,1726527041030,-1013.720652,0.00019989,2]
[338343473,1726527041040,-151.0,0.00019989,2]
[338343475,1726527041050,-151.0,0.00019989,2]
[338343477,1726527041060,-151.0,0.00019989,2]
[338343479,1726527041069,-151.0,0.00019989,2]
[338343481,1726527041079,-151.0,0.00019989,2]
[338343483,1726527041088,-151.0,0.00019989,2]
[338343485,1726527041097,-151.0,0.00019989,2]
[338343487,1726527041107,-151.0,0.00019989,2]
[338343489,1726527041117,-151.0,0.00019989,2]
[338343491,1726527041127,-151.0,0.00019989,2]
[338343494,1726527041136,-475.986206,0.00019989,2]
[338343496,1726527041146,-475.986206,0.00019989,2]
[338343498,1726527041156,-475.986206,0.00019989,2]
[338343500,1726527041166,-487.56098568,0.00019989,2]
[338343502,1726527041176,-500.0,0.00019989,2]
[338343504,1726527041186,-500.0,0.00019989,2]
[338343506,1726527041195,-500.0,0.00019989,2]
[338343508,1726527041205,-500.0,0.00019989,2]
[338343510,1726527041214,-500.0,0.00019989,2]
[338343512,1726527041223,-346.70706494,0.00019989,2]
[338343514,1726527041233,-173.5799765,0.00019989,2]
[338343515,1726527041242,-500.0,0.00019989,2]
[338343516,1726527041252,-500.0,0.00019989,2]
[338343517,1726527041261,-220.73256268,0.00019989,2]
[338343518,1726527041271,-475.986206,0.00019989,2]
[338343519,1726527041280,-500.0,0.00019989,2]
[338343520,1726527041294,-475.986206,0.00019989,2]
[338343521,1726527041304,-500.0,0.00019989,2]
[338343522,1726527041314,-475.986206,0.00019989,2]
[338343523,1726527041324,-151.0,0.00019989,2]
[338343524,1726527041333,-151.0,0.00019989,2]
[338343525,1726527041342,-151.0,0.00019989,2]
[338343526,1726527041352,-151.0,0.00019989,2]
[338343527,1726527041361,-151.0,0.00019989,2]
[338343528,1726527041372,-151.0,0.00019989,2]
[338343529,1726527041381,-151.0,0.00019989,2]
[338343530,1726527041391,-151.0,0.00019989,2]
[338343531,1726527041400,-204.30821601,0.00019989,2]
[338343533,1726527041411,-500.0,0.00019989,2]
[338343535,1726527041422,-500.0,0.00019989,2]
[338343537,1726527041432,-577.16017069,0.00019989,2]
[338343539,1726527041442,-500.0,0.00019989,2]
[338343541,1726527041452,-500.0,0.00019989,2]
[338343543,1726527041462,-500.0,0.00019989,2]
[338343545,1726527041472,-500.0,0.00019989,2]
[338343547,1726527041481,-151.0,0.00019989,2]
[338343549,1726527041491,-151.0,0.00019989,2]
[338343570,1726527041501,-151.0,0.00019989,2]
[338343574,1726527041714,-248.809898,0.00019989,2]
[338343576,1726527041724,-151.0,0.00019989,2]
[338343578,1726527041734,-151.0,0.00019989,2]
[338343580,1726527041744,-208.700072,0.00019989,2]
[338343581,1726527041754,-4000.0,0.00019989,2]
[338343583,1726527041764,-4000.0,0.00019989,2]
[338343585,1726527041774,-4000.0,0.00019989,2]
[338343587,1726527041787,-2052.005818,0.00019989,2]
[338343589,1726527041799,-151.0,0.00019989,2]
[338343591,1726527041809,-151.0,0.00019989,2]
[338343593,1726527041818,-296.819053,0.00019989,2]
[338343595,1726527041828,-343.322763,0.00019989,2]
[338343596,1726527041838,-343.322763,0.00019989,2]
[338343598,1726527041848,-343.322763,0.00019989,2]
[338343600,1726527041857,-343.322763,0.00019989,2]
[338343602,1726527041867,-343.322763,0.00019989,2]
[338343604,1726527041877,-343.322763,0.00019989,2]
[338343606,1726527041887,-343.322763,0.00019989,2]
[338343607,1726527041896,-343.322763,0.00019989,2]
[338343609,1726527041906,-343.322763,0.00019989,2]
[338343611,1726527041916,-343.322763,0.00019989,2]
[338343613,1726527041926,-623.263215,0.00019989,2]
[338343615,1726527041936,-623.263215,0.00019989,2]
[338343617,1726527041945,-623.263215,0.00019989,2]
[338343619,1726527041954,-623.263215,0.00019989,2]
[338343621,1726527041965,-623.263215,0.00019989,2]
[338343622,1726527041974,-623.263215,0.00019989,2]
[338343624,1726527041984,-384.70799,0.00019989,2]
[338343626,1726527041993,-384.70799,0.00019989,2]
[338343628,1726527042003,-384.70799,0.00019989,2]
[338343629,1726527042012,-384.70799,0.00019989,2]
[338343630,1726527042022,-384.70799,0.00019989,2]
[338343631,1726527042032,-384.70799,0.00019989,2]
[338343632,1726527042043,-384.70799,0.00019989,2]
[338343633,1726527042052,-384.70799,0.00019989,2]
[338343634,1726527042061,-384.70799,0.00019989,2]
[338343635,1726527042071,-384.707982,0.00019989,2]
[338343636,1726527042080,-158.391309,0.00019989,2]
[338343637,1726527042090,-158.391309,0.00019989,2]
[338343638,1726527042099,-158.391309,0.00019989,2]
[338343639,1726527042109,-158.391309,0.00019989,2]
[338343640,1726527042119,-158.391309,0.00019989,2]
[338343641,1726527042128,-158.391309,0.00019989,2]
[338343642,1726527042137,-158.391309,0.00019989,2]
[338343643,1726527042147,-158.391309,0.00019989,2]
[338343644,1726527042158,-158.391309,0.00019989,2]
[338343645,1726527042167,-158.391309,0.00019989,2]
[338343646,1726527042177,-158.391309,0.00019989,2]
[338343647,1726527042187,-158.391309,0.00019989,2]
[338343648,1726527042196,-400.513218,0.00019989,2]
[338343649,1726527042205,-400.513218,0.00019989,2]
[338343650,1726527042214,-151.0,0.0001999,2]
[338343651,1726527042224,-500.0,0.0001999,2]
[338343652,1726527042234,-236.133318,0.0001999,2]
[338343653,1726527042244,-236.133318,0.0001999,2]
[338343654,1726527042254,-1013.720652,0.0001999,2]
[338343655,1726527042264,-1013.720652,0.0001999,2]
[338343656,1726527042273,-151.0,0.0001999,2]
[338343657,1726527042282,-151.0,0.0001999,2]
[338343658,1726527042292,-149459.83847977,0.0001999,3]
[338343750,1726527319285,277.175241,0.00013699,2]
[338343751,1726527420745,1197.0,0.00014,2]
[338343752,1726527571853,755.74,0.0002051,120]
[338343755,1726527897527,274.088478,0.00013699,2]
[338343756,1726527939566,-508.704984,0.00019,2]
[338343757,1726528038154,-157.992851,0.00019178,2]
[338343758,1726528038176,-167.23133214,0.00019397,2]
[338343759,1726528038197,-156.2,0.00019417,2]
[338343760,1726528038218,-155.581864,0.00019538,2]
[338343761,1726528038242,-155.581864,0.00019538,2]
[338343762,1726528038266,-156.2,0.00019575,2]
[338343763,1726528038288,-167.23133214,0.00019589,2]
[338343764,1726528038309,-133.88120537,0.0001972,2]
[338343765,1726528051101,-788.08253638,0.0001972,2]
[338343794,1726528232114,-161.661356,0.00019178,2]
[338343796,1726528232125,-156.2,0.00019734,2]
[338343798,1726528232135,-167.23133214,0.00019753,2]
[338343801,1726528232145,-300.0,0.00019799,2]
[338343803,1726528232156,-300.0,0.00019799,2]
[338343805,1726528232166,-383.26013342,0.000198,2]
[338343845,1726528240263,-510.71986658,0.000198,2]
[338343847,1726528240274,-153.0,0.000198,2]
[338343849,1726528240284,-153.0,0.000198,2]
[338343851,1726528240294,-153.0,0.000198,2]
[338343853,1726528240304,-153.0,0.000198,2]
[338343855,1726528240314,-153.0,0.000198,2]
[338343857,1726528240325,-153.0,0.000198,2]
[338343859,1726528240335,-1000.0,0.000198,2]
[338343861,1726528240344,-500.0,0.00019862,2]
[338343863,1726528240354,-500.0,0.00019862,2]
[338343865,1726528240364,-1000.0,0.0001987,2]
[338343867,1726528240374,-161.36702976,0.00019878,2]
[338343869,1726528240384,-156.2,0.00019892,2]
[338343871,1726528240394,-161.36702976,0.000199,2]
[338343873,1726528240404,-167.23133214,0.00019918,2]
[338343875,1726528240414,-167.23133212,0.00019918,2]
[338343878,1726528240425,-151.0,0.0001996,2]
[338343880,1726528240436,-151.0,0.0001996,2]
[338343882,1726528240446,-151.0,0.0001996,2]
[338343884,1726528240456,-500.0,0.00019967,2]
[338343886,1726528240466,-500.0,0.00019967,2]
[338343888,1726528240476,-500.0,0.00019967,2]
[338343890,1726528240486,-500.0,0.00019967,2]
[338343892,1726528240496,-500.0,0.00019967,2]
[338343894,1726528240505,-500.0,0.00019967,2]
[338343896,1726528240515,-500.0,0.00019967,2]
[338343898,1726528240526,-500.0,0.00019967,2]
[338343899,1726528240536,-500.0,0.00019967,2]
[338343901,1726528240549,-500.0,0.00019967,2]
[338343903,1726528240559,-500.0,0.00019967,2]
[338343905,1726528240570,-500.0,0.00019967,2]
[338343907,1726528240580,-546.89230062,0.00019967,2]
[338343909,1726528240591,-500.0,0.00019967,2]
[338343910,1726528240600,-500.0,0.00019967,2]
[338343911,1726528240611,-500.0,0.00019967,2]
[338343912,1726528240621,-500.0,0.00019967,2]
[338343913,1726528240631,-500.0,0.00019967,2]
[338343914,1726528240640,-500.0,0.00019967,2]
[338343915,1726528240651,-500.0,0.00019967,2]
[338343916,1726528240660,-61807.2257299,0.00019968,3]
[338343917,1726528240670,-52630.7524658,0.00019968,3]
[338343918,1726528240680,-535.227,0.0001997,2]
[338343919,1726528240690,-500.0,0.00019973,2]
[338343920,1726528240699,-411.88407028,0.00019973,2]
[338343921,1726528240710,-500.0,0.00019973,2]
[338343922,1726528240719,-500.0,0.00019973,2]
[338343923,1726528240730,-500.0,0.00019973,2]
[338343924,1726528240740,-500.0,0.00019973,2]
[338343925,1726528240750,-500.0,0.00019973,2]
[338343926,1726528240760,-500.17046427,0.00019973,2]
[338343927,1726528240769,-500.0,0.00019973,2]
[338343929,1726528240780,-500.0,0.00019973,2]
[338343930,1726528240791,-500.0,0.00019977,2]
[338343931,1726528240800,-625.20328559,0.00019977,2]
[338343932,1726528240811,-204.30821601,0.00019977,2]
[338343933,1726528240821,-500.0,0.00019977,2]
[338343934,1726528240832,-500.0,0.00019977,2]
[338343935,1726528240842,-500.0,0.00019977,2]
[338343936,1726528240851,-173.5799765,0.00019977,2]
[338343937,1726528240862,-220.73256268,0.00019977,2]
[338343938,1726528240872,-500.0,0.00019977,2]
[338343939,1726528240882,-500.0,0.00019977,2]
[338343940,1726528240891,-500.0,0.00019977,2]
[338343941,1726528240900,-500.0,0.00019977,2]
[338343942,1726528240910,-500.0,0.00019977,2]
[338343943,1726528240920,-500.0,0.00019977,2]
[338343944,1726528240930,-500.0,0.00019977,2]
[338343945,1726528240939,-500.0,0.00019977,2]
[338343946,1726528240948,-423.86723563,0.00019977,2]
[338343947,1726528240958,-500.0,0.00019977,2]
[338343948,1726528240968,-500.0,0.00019977,2]
[338343949,1726528240977,-500.0,0.00019977,2]
[338343950,1726528240987,-500.0,0.00019977,2]
[338343951,1726528240996,-250.0,0.00019977,2]
[338343952,1726528241006,-647.56021352,0.00019978,5]
[338343953,1726528241015,-157.24516602,0.00019978,2]
[338343954,1726528241025,-184536.54453221,0.00019978,3]
[338343960,1726528243037,-62692.35838779,0.00019978,3]
[338343961,1726528243047,-43725.80494109,0.00019978,3]
[338343962,1726528243244,-39189.3324849,0.00019978,3]
[338343975,1726528413490,260.384054,0.00013699,2]
[338344001,1726528942433,257.468223,0.00013699,2]
[338344004,1726529240124,-170.945712,0.00019003,2]
[338344005,1726529240146,-159.733787,0.00019178,2]
[338344006,1726529240168,-674.9827374,0.0001954,2]
[338344021,1726529381176,241.33132117,0.0001401,2]
[338344022,1726529381196,267.73879104,0.0001401,2]
[338344023,1726529381433,192.35475709,0.0001401,2]
[338344024,1726529381460,1303.5751307,0.0001401,2]
[338344025,1726529393852,-239.54642723,0.00018903,2]
[338344048,1726529432248,-6626.96008612,0.00019458,2]
[338344049,1726529432258,-300.0,0.00019499,2]
[338344050,1726529432270,-6099.0,0.000195,2]
[338344051,1726529432280,-38.73210394,0.0001954,2]
[338344052,1726529432291,-176.0,0.0001964,2]
[338344053,1726529432302,-167.23133213,0.00019671,2]
[338344054,1726529432312,-804.58,0.000198,2]
[338344055,1726529432322,-153.0,0.000198,2]
[338344056,1726529432331,-208.6350023,0.000198,2]
[338344057,1726529432341,-208.6350023,0.000198,2]
[338344058,1726529432351,-153.0,0.000198,2]
[338344059,1726529432361,-153.0,0.000198,2]
[338344060,1726529432371,-208.6350023,0.000198,2]
[338344061,1726529432380,-153.0,0.000198,2]
[338344062,1726529432390,-153.0,0.000198,2]
[338344063,1726529432399,-153.0,0.000198,2]
[338344064,1726529432421,-1000.0,0.00019806,2]
[338344065,1726529432433,-3794.16981129,0.00019858,2]
[338344066,1726529432443,-161.36702976,0.00019859,2]
[338344067,1726529432453,-1000.0,0.00019859,2]
[338344068,1726529432464,-153.0,0.000199,2]
[338344069,1726529432474,-153.0,0.000199,2]
[338344070,1726529432484,-153.0,0.000199,2]
[338344071,1726529432495,-153.0,0.000199,2]
[338344072,1726529432505,-167.23133213,0.00019918,2]
[338344073,1726529432514,-808.94887829,0.0001992,2]
[338344074,1726529432524,-306.85385417,0.00019923,2]
[338344075,1726529432535,-438.88,0.0001994,2]
[338344076,1726529432545,-500.0,0.0001995,2]
[338344077,1726529432556,-500.0,0.00019957,2]
[338344078,1726529432566,-500.0,0.00019957,2]
[338344079,1726529432577,-500.0,0.00019957,2]
[338344080,1726529432587,-500.0,0.00019957,2]
[338344081,1726529432597,-546.89230062,0.00019957,2]
[338344082,1726529432607,-500.0,0.00019957,2]
[338344083,1726529432617,-500.0,0.00019957,2]
[338344084,1726529432628,-500.0,0.00019957,2]
[338344085,1726529432638,-500.0,0.00019957,2]
[338344086,1726529432648,-500.0,0.00019957,2]
[338344087,1726529432658,-500.0,0.00019957,2]
[338344088,1726529432668,-500.0,0.00019957,2]
[338344089,1726529432678,-500.0,0.00019957,2]
[338344090,1726529432688,-500.0,0.00019957,2]
[338344091,1726529432699,-500.0,0.00019957,2]
[338344092,1726529432709,-500.0,0.00019957,2]
[338344093,1726529432719,-500.0,0.00019957,2]
[338344094,1726529432730,-500.0,0.00019957,2]
[338344095,1726529432740,-500.0,0.00019957,2]
[338344096,1726529432750,-482.76663623,0.00019957,2]
[338344128,1726529440510,-17.23336377,0.00019957,2]
[338344129,1726529440520,-58672.6078105,0.00019958,3]
[338344130,1726529440530,-48484.9955945,0.00019958,3]
[338344131,1726529440540,-151.0,0.00019959,2]
[338344132,1726529440552,-151.0,0.00019959,2]
[338344133,1726529440563,-151.0,0.00019959,2]
[338344134,1726529440574,-845.184332,0.00019959,2]
[338344135,1726529440585,-845.184332,0.00019959,2]
[338344136,1726529440595,-58672.6078105,0.00019959,3]
[338344137,1726529440606,-48484.9955945,0.00019959,3]
[338344138,1726529440615,-500.0,0.0001996,2]
[338344139,1726529440626,-204.30821601,0.00019967,2]
[338344140,1726529440636,-500.0,0.00019967,2]
[338344141,1726529440646,-500.0,0.00019967,2]
[338344142,1726529440656,-500.0,0.00019967,2]
[338344143,1726529440666,-500.0,0.00019967,2]
[338344144,1726529440675,-500.0,0.00019967,2]
[338344145,1726529440694,-500.0,0.00019967,2]
[338344146,1726529440704,-173.5799765,0.00019967,2]
[338344147,1726529440714,-625.20328559,0.00019967,2]
[338344148,1726529440725,-220.73256268,0.00019967,2]
[338344149,1726529440735,-500.0,0.00019967,2]
[338344150,1726529440745,-500.0,0.00019967,2]
[338344151,1726529440755,-500.0,0.00019967,2]
[338344152,1726529440764,-500.0,0.00019967,2]
[338344153,1726529440774,-500.0,0.00019967,2]
[338344154,1726529440784,-500.0,0.00019967,2]
[338344155,1726529440794,-423.86723563,0.00019967,2]
[338344156,1726529440803,-500.0,0.00019967,2]
[338344157,1726529440813,-500.0,0.00019967,2]
[338344158,1726529440823,-500.0,0.00019967,2]
[338344159,1726529440834,-500.0,0.00019967,2]